[Event "84th ESP-ch 2019"]
[Site "Marbella"]
[Date "2019.11.16"]
[Round "1.40"]
[White "Munoz Jorva, Miguel Angel"]
[Black "Hernando Rodrigo, Julio Antonio"]
[Result "0-1"]
[ECO "E16"]
[WhiteElo "1721"]
[BlackElo "2271"]
[Annotator "NA"]
[PlyCount "54"]
[EventDate "2019.11.16"]
[EventType "swiss"]
[EventCountry "ESP"]
[SourceTitle "playchess.com"]
[Source "ChessBase"]
[SourceQuality "1"]
[TimeControl "5400+30"]

1. d4 {[%emt 0:00:00]} Nf6 {[%emt 0:00:00]} 2. c4 {[%emt 0:00:09]} e6 {[%emt 0:00:17]} 3. Nf3 {[%emt 0:01:41]} Bb4+ {[%emt 0:00:17]} 4. Bd2 {[%emt 0:00:48]} Qe7 {[%emt 0:00:30]} 5. a3 {[%emt 0:02:57]} Bxd2+ {[%emt 0:00:07]} 6. Qxd2 {[%emt 0:00:40]} d5 {[%emt 0:03:26]} 7. e3 {[%emt 0:02:07]} O-O {[%emt 0:00:20]} 8. Nc3 {[%emt 0:01:43]} b6 {[%emt 0:03:24]} 9. cxd5 {[%emt 0:04:39]} exd5 {[%emt 0:00:11]} 10. Be2 {[%emt 0:02:56]} Bb7 {[%emt 0:01:02]} 11. O-O {[%emt 0:01:13]} Nbd7 {[%emt 0:02:07]} 12. Rac1 {[%emt 0:10:05]} c5 {[%emt 0:01:37]} 13. Rfd1 {[%emt 0:08:32]} c4 {[%emt 0:04:56]} 14. Qe1 {[%emt 0:07:15]} a6 {[%emt 0:07:01]} 15. Na2 {[%emt 0:25:03]} a5 {[%emt 0:07:31]} 16. Nd2 {[%emt 0:06:09]} Bc6 {[%emt 0:09:40]} 17. Ra1 {[%emt 0:03:57]} b5 {[%emt 0:00:54]} 18. Bf3 {[%emt 0:09:41]} Rfc8 {[%emt 0:12:32]} 19. Rdc1 {[%emt 0:00:23]} b4 {[%emt 0:02:16]} 20. axb4 {[%emt 0:02:32]} axb4 {[%emt 0:00:15]} 21. Nxc4 {[%emt 0:01:39]} dxc4 {[%emt 0:02:36]} 22. Qxb4 {[%emt 0:01:10]} Qxb4 {[%emt 0:05:36]} 23. Nxb4 {[%emt 0:01:04]} Bxf3 {[%emt 0:00:26]} 24. gxf3 {[%emt 0:00:13]} Rab8 {[%emt 0:01:02]} 25. Ra4 {[%emt 0:01:12]} Rb5 {[%emt 0:02:04]} 26. Nd3 {[%emt 0:02:20]} Nb6 {[%emt 0:00:58]} 27. Rb4 {[%emt 0:00:13]} cxd3 {[%emt 0:00:47]} 0-1

[Event "84th ESP-ch 2019"]
[Site "Marbella"]
[Date "2019.11.16"]
[Round "1.41"]
[White "Jimenez Ruano, Adrian"]
[Black "Estevez Sacristan, Deva"]
[Result "1-0"]
[ECO "A80"]
[WhiteElo "2269"]
[BlackElo "1719"]
[Annotator "ChessBase"]
[PlyCount "139"]
[EventDate "2019.11.16"]
[EventType "swiss"]
[EventCountry "ESP"]
[SourceTitle "playchess.com"]
[Source "ChessBase"]
[SourceQuality "1"]
[TimeControl "5400+30"]

1. d4 {[%emt 0:00:00]} f5 {[%emt 0:00:00]} 2. Bg5 {[%emt 0:00:00]} g6 {[%emt 0:00:00]} 3. Nc3 {[%emt 0:01:07]} Bg7 {[%emt 0:00:23]} 4. h4 {[%emt 0:00:43]} d6 {[%emt 0:06:16]} 5. e4 {[%emt 0:06:07]} fxe4 {[%emt 0:02:20]} 6. Nxe4 {[%emt 0:03:56]} d5 {[%emt 0:03:09]} 7. Ng3 {[%emt 0:02:35]} c5 {[%emt 0:12:07]} 8. Qd2 {[%emt 0:37:02]} Nc6 {[%emt 0:09:25]} 9. Bb5 {[%emt 0:11:41]} Bxd4 {[%emt 0:19:34]} 10. c3 {[%emt 0:01:35]} Bg7 {[%emt 0:01:07]} 11. N1e2 {[%emt 0:02:21]} a6 {[%emt 0:04:27]} 12. Ba4 {[%emt 0:06:57]} b5 {[%emt 0:03:51]} 13. Bc2 {[%emt 0:00:56]} Ne5 {[%emt 0:05:49]} 14. Rd1 {[%emt 0:08:39]} Bb7 {[%emt 0:08:06]} 15. h5 {[%emt 0:04:39]} Qd6 {[%emt 0:04:01]} 16. Qe3 {[%emt 0:06:04]} Nc4 {[%emt 0:06:24]} 17. Qc1 {[%emt 0:00:45]} O-O-O {[%emt 0:01:52]} 18. b3 {[%emt 0:01:24]} Ne5 {[%emt 0:01:22]} 19. Qe3 {[%emt 0:00:54]} Qc6 {[%emt 0:01:16]} 20. Bf4 {[%emt 0:01:17]} Nf7 {[%emt 0:00:53]} 21. Qf3 {[%emt 0:00:28]} e5 {[%emt 0:03:56]} 22. Bc1 {[%emt 0:00:33]} Qe6 {[%emt 0:00:37]} 23. Nf5 {[%emt 0:01:04]} Bf6 {[%emt 0:00:55]} 24. Nfg3 {[%emt 0:00:39]} Ne7 {[%emt 0:00:31]} 25. Ba3 {[%emt 0:00:25]} Qc6 {[%emt 0:02:38]} 26. Bxc5 {[%emt 0:00:24]} Qxc5 {[%emt 0:01:15]} 27. Qxf6 {[%emt 0:00:01]} Rhf8 {[%emt 0:00:21]} 28. O-O {[%emt 0:00:34]} Kb8 {[%emt 0:00:40]} 29. hxg6 {[%emt 0:00:29]} hxg6 {[%emt 0:00:06]} 30. Bxg6 {[%emt 0:00:22]} Nxg6 {[%emt 0:00:37]} 31. Qxg6 {[%emt 0:00:02]} Rd6 {[%emt 0:00:27]} 32. Qg7 {[%emt 0:00:44]} Rh6 {[%emt 0:00:33]} 33. b4 {[%emt 0:01:08]} Qc8 {[%emt 0:00:05]} 34. Nf5 {[%emt 0:00:42]} Rhh8 {[%emt 0:01:06]} 35. Neg3 {[%emt 0:00:18]} Rhg8 {[%emt 0:00:40]} 36. Qf6 {[%emt 0:00:10]} Qc7 {[%emt 0:00:22]} 37. Rfe1 {[%emt 0:00:36]} e4 {[%emt 0:00:26]} 38. Qe7 {[%emt 0:00:49]} Qxc3 {[%emt 0:00:36]} 39. Nd4 {[%emt 0:00:43]} Qc8 {[%emt 0:00:35]} 40. Rc1 {[%emt 0:00:22]} Qd8 {[%emt 0:00:12]} 41. Qc5 {[%emt 0:00:16]} Ne5 {[%emt 0:00:17]} 42. Ne6 {[%emt 0:00:21]} Nd3 {[%emt 0:00:25]} 43. Qxf8 {[%emt 0:00:52]} Qxf8 {[%emt 0:00:35]} 44. Nxf8 {[%emt 0:00:03]} Nxc1 {[%emt 0:00:11]} 45. Nd7+ {[%emt 0:00:35]} Kc7 {[%emt 0:00:08]} 46. Nf6 {[%emt 0:00:19]} Nd3 {[%emt 0:00:04]} 47. Rb1 {[%emt 0:01:15]} Rf8 {[%emt 0:00:29]} 48. Ngh5 {[%emt 0:00:18]} Kd6 {[%emt 0:00:40]} 49. g4 {[%emt 0:00:20]} Bc8 {[%emt 0:00:22]} 50. Kg2 {[%emt 0:00:48]} Ke5 {[%emt 0:01:26]} 51. g5 {[%emt 0:00:14]} Bf5 {[%emt 0:00:14]} 52. Ng3 {[%emt 0:00:31]} Rc8 {[%emt 0:00:52]} 53. Nxd5 {[%emt 0:00:41]} Rc2 {[%emt 0:00:39]} 54. Rf1 {[%emt 0:00:35]} Bg4 {[%emt 0:00:45]} 55. Ne3 {[%emt 0:00:01]} Bf3+ {[%emt 0:00:06]} 56. Kg1 {[%emt 0:00:11]} Rxa2 {[%emt 0:00:35]} 57. Ngf5 {[%emt 0:00:52]} Bh5 {[%emt 0:00:39]} 58. Ne7 {[%emt 0:00:39]} Ke6 {[%emt 0:00:47]} 59. N7d5 {[%emt 0:00:25]} Ne5 {[%emt 0:00:33]} 60. Nf4+ {[%emt 0:00:07]} Kf7 {[%emt 0:00:20]} 61. Nxh5 {[%emt 0:00:10]} Kg6 {[%emt 0:00:03]} 62. Ng3 {[%emt 0:00:38]} Nf3+ {[%emt 0:00:06]} 63. Kg2 {[%emt 0:00:08]} Kxg5 {[%emt 0:01:39]} 64. Nxe4+ {[%emt 0:00:11]} Kf4 {[%emt 0:00:04]} 65. Nd5+ {[%emt 0:00:18]} Kxe4 {[%emt 0:00:58]} 66. Nc3+ {[%emt 0:00:01]} Kd3 {[%emt 0:00:20]} 67. Nxa2 {[%emt 0:00:04]} Nd2 {[%emt 0:00:13]} 68. Rd1 {[%emt 0:00:31]} Kc2 {[%emt 0:00:14]} 69. Rxd2+ {[%emt 0:00:13]} Kxd2 {[%emt 0:00:05]} 70. f4 {[%emt 0:00:04]} 1-0

[Event "84th ESP-ch 2019"]
[Site "Marbella"]
[Date "2019.11.16"]
[Round "1.42"]
[White "Clavero Santos, Ricardo"]
[Black "Moral Garcia, Serafin"]
[Result "0-1"]
[ECO "A48"]
[WhiteElo "1716"]
[BlackElo "2267"]
[Annotator "NA"]
[PlyCount "64"]
[EventDate "2019.11.16"]
[EventType "swiss"]
[EventCountry "ESP"]
[SourceTitle "playchess.com"]
[Source "ChessBase"]
[SourceQuality "1"]
[TimeControl "5400+30"]

1. d4 {[%emt 0:00:00]} Nf6 {[%emt 0:00:00]} 2. Nf3 {[%emt 0:00:00]} g6 {[%emt 0:00:03]} 3. Bf4 {[%emt 0:00:23]} Bg7 4. e3 {[%emt 0:00:28]} c5 {[%emt 0:00:45]} 5. c3 {[%emt 0:02:49]} b6 {[%emt 0:00:54]} 6. Be2 {[%emt 0:01:35]} O-O {[%emt 0:01:09]} 7. O-O {[%emt 0:01:10]} Bb7 {[%emt 0:00:21]} 8. Nbd2 {[%emt 0:05:21]} d6 {[%emt 0:01:40]} 9. h3 {[%emt 0:06:46]} Nbd7 {[%emt 0:02:20]} 10. Re1 {[%emt 0:03:29]} a6 {[%emt 0:03:41]} 11. Bf1 {[%emt 0:10:47]} Ne4 {[%emt 0:03:26]} 12. Nxe4 {[%emt 0:00:37]} Bxe4 {[%emt 0:00:02]} 13. Nd2 {[%emt 0:00:32]} Bb7 {[%emt 0:00:26]} 14. b4 {[%emt 0:08:23]} e5 {[%emt 0:06:19]} 15. Bh2 {[%emt 0:05:29]} d5 {[%emt 0:05:19]} 16. bxc5 {[%emt 0:05:25]} bxc5 {[%emt 0:00:18]} 17. Rb1 {[%emt 0:02:25]} Bc6 {[%emt 0:00:29]} 18. Nf3 {[%emt 0:02:10]} e4 {[%emt 0:03:23]} 19. Nd2 {[%emt 0:04:59]} c4 {[%emt 0:02:07]} 20. Qc2 {[%emt 0:13:24]} Re8 {[%emt 0:02:24]} 21. Be2 {[%emt 0:04:06]} Bf8 {[%emt 0:00:30]} 22. f3 {[%emt 0:02:02]} f5 {[%emt 0:00:31]} 23. fxe4 {[%emt 0:02:13]} fxe4 {[%emt 0:00:10]} 24. Nxc4 {[%emt 0:01:53]} dxc4 {[%emt 0:01:43]} 25. Bxc4+ {[%emt 0:00:13]} Kh8 {[%emt 0:00:02]} 26. Bf7 {[%emt 0:02:25]} Re7 {[%emt 0:02:34]} 27. Qb3 {[%emt 0:02:22]} Ba4 {[%emt 0:06:42]} 28. Qd5 {[%emt 0:02:07]} Nf6 {[%emt 0:07:08]} 29. Qc4 {[%emt 0:02:39]} Qd7 {[%emt 0:00:33]} 30. Be5 {[%emt 0:01:47]} Rxf7 {[%emt 0:00:30]} 31. Rf1 {[%emt 0:00:34]} Bg7 {[%emt 0:00:27]} 32. Rb6 {[%emt 0:01:25]} Bb5 {[%emt 0:00:17]} 0-1

[Event "84th ESP-ch 2019"]
[Site "Marbella"]
[Date "2019.11.17"]
[Round "2.12"]
[White "Espinosa Aranda, Angel"]
[Black "Rey Malde, Henrique"]
[Result "1-0"]
[ECO "B20"]
[WhiteElo "2511"]
[BlackElo "2209"]
[Annotator "RC"]
[PlyCount "47"]
[EventDate "2019.11.16"]
[EventType "swiss"]
[EventCountry "ESP"]
[SourceTitle "playchess.com"]
[Source "ChessBase"]
[SourceQuality "1"]
[TimeControl "5400+30"]

1. e4 {[%emt 0:00:00]} c5 {[%emt 0:07:36]} 2. Ne2 {[%emt 0:00:00]} d6 {[%emt 0:01:02]} 3. g3 {[%emt 0:00:03]} g6 {[%emt 0:01:32]} 4. Bg2 {[%emt 0:00:06]} Bg7 {[%emt 0:00:11]} 5. c3 {[%emt 0:00:04]} Nc6 {[%emt 0:05:10]} 6. d4 {[%emt 0:00:06]} cxd4 {[%emt 0:04:29]} 7. cxd4 {[%emt 0:00:06]} Nf6 {[%emt 0:00:34]} 8. Nbc3 {[%emt 0:01:02]} O-O {[%emt 0:00:48]} 9. O-O {[%emt 0:00:07]} Bd7 {[%emt 0:03:47]} 10. h3 {[%emt 0:01:28]} Rc8 {[%emt 0:02:21]} 11. Be3 {[%emt 0:01:56]} a6 {[%emt 0:00:57]} 12. Qd2 {[%emt 0:09:18]} Re8 {[%emt 0:04:45]} 13. Rac1 {[%emt 0:11:01]} b5 {[%emt 0:06:17]} 14. b3 {[%emt 0:01:40]} e5 {[%emt 0:16:35]} 15. dxe5 {[%emt 0:12:34]} dxe5 {[%emt 0:00:25]} 16. Bg5 {[%emt 0:00:06]} Ne7 {[%emt 0:09:00]} 17. Rfd1 {[%emt 0:06:31]} Be6 {[%emt 0:02:35]} 18. Nd5 {[%emt 0:09:36]} Nexd5 {[%emt 0:04:13]} 19. exd5 {[%emt 0:00:20]} Bd7 {[%emt 0:00:25]} 20. d6 {[%emt 0:02:11]} Qb6 {[%emt 0:04:10]} 21. Rc7 {[%emt 0:05:55]} Rxc7 {[%emt 0:08:33]} 22. dxc7 {[%emt 0:00:06]} Bc8 {[%emt 0:00:03]} 23. Qd8 {[%emt 0:02:52]} Qe6 {[%emt 0:00:06]} 24. Rd6 {[%emt 0:00:18]} 1-0

[Event "84th ESP-ch 2019"]
[Site "Marbella"]
[Date "2019.11.17"]
[Round "2.22"]
[White "Valmana Canto, Jaime"]
[Black "Jaime Montalvan, Luis Felipe"]
[Result "1-0"]
[ECO "A22"]
[WhiteElo "2416"]
[BlackElo "2167"]
[Annotator "RC"]
[PlyCount "81"]
[EventDate "2019.11.16"]
[EventType "swiss"]
[EventCountry "ESP"]
[SourceTitle "playchess.com"]
[Source "ChessBase"]
[SourceQuality "1"]
[TimeControl "5400+30"]

1. c4 {[%emt 0:05:01]} e5 {[%emt 0:01:59]} 2. Nc3 {[%emt 0:00:09]} Nf6 {[%emt 0:01:07]} 3. Nf3 {[%emt 0:00:09]} d6 {[%emt 0:00:12]} 4. d4 {[%emt 0:00:28]} Nbd7 {[%emt 0:00:29]} 5. g3 {[%emt 0:00:24]} g6 {[%emt 0:00:13]} 6. Bg2 {[%emt 0:00:06]} Bg7 {[%emt 0:00:01]} 7. O-O {[%emt 0:00:11]} O-O {[%emt 0:00:09]} 8. b3 {[%emt 0:01:32]} Re8 {[%emt 0:00:14]} 9. Bb2 {[%emt 0:06:04]} c6 {[%emt 0:03:54]} 10. Qc2 {[%emt 0:27:01]} exd4 {[%emt 0:03:55]} 11. Nxd4 {[%emt 0:00:10]} a5 {[%emt 0:00:18]} 12. Rad1 {[%emt 0:01:35]} Qc7 {[%emt 0:00:22]} 13. a3 {[%emt 0:01:21]} Nb6 {[%emt 0:06:46]} 14. Nb1 {[%emt 0:12:24]} d5 {[%emt 0:09:03]} 15. cxd5 {[%emt 0:02:40]} Nbxd5 {[%emt 0:07:20]} 16. e4 {[%emt 0:00:15]} Nb6 {[%emt 0:00:26]} 17. Nc3 {[%emt 0:05:05]} Bg4 {[%emt 0:02:51]} 18. f3 {[%emt 0:00:10]} Bd7 {[%emt 0:00:39]} 19. Bc1 {[%emt 0:02:54]} Nh5 {[%emt 0:27:02]} 20. Nde2 {[%emt 0:06:12]} f5 {[%emt 0:14:04]} 21. Nb5 {[%emt 0:02:33]} Qb8 {[%emt 0:00:17]} 22. Nd6 {[%emt 0:00:32]} Re6 {[%emt 0:00:46]} 23. Nc4 {[%emt 0:03:57]} Nxc4 {[%emt 0:00:28]} 24. Qxc4 {[%emt 0:00:07]} b5 {[%emt 0:00:47]} 25. Qc5 {[%emt 0:02:40]} Bf8 {[%emt 0:05:23]} 26. Qf2 {[%emt 0:00:22]} Qa7 {[%emt 0:12:12]} 27. Be3 {[%emt 0:03:13]} Qc7 {[%emt 0:00:02]} 28. Bh3 {[%emt 0:10:41]} Bxa3 {[%emt 0:00:30]} 29. exf5 {[%emt 0:00:17]} Re7 {[%emt 0:00:21]} 30. Nd4 {[%emt 0:01:44]} gxf5 {[%emt 0:02:12]} 31. Nxf5 {[%emt 0:00:29]} Bxf5 {[%emt 0:00:29]} 32. Bxf5 {[%emt 0:00:06]} Rae8 {[%emt 0:00:18]} 33. Bb6 {[%emt 0:03:00]} Qe5 {[%emt 0:00:43]} 34. Bd7 {[%emt 0:00:27]} Rb8 {[%emt 0:00:45]} 35. Rfe1 {[%emt 0:02:04]} Qc3 {[%emt 0:00:17]} 36. Rxe7 {[%emt 0:00:20]} Rxb6 {[%emt 0:00:50]} 37. Re8+ {[%emt 0:01:25]} Kf7 {[%emt 0:00:32]} 38. Qe2 {[%emt 0:00:07]} Nf6 {[%emt 0:00:05]} 39. Qe6+ {[%emt 0:00:58]} Kg7 {[%emt 0:00:22]} 40. Qe5 {[%emt 0:00:35]} Qxf3 {[%emt 0:00:56]} 41. Rf1 {[%emt 0:00:19]} 1-0

[Event "84th ESP-ch 2019"]
[Site "Marbella"]
[Date "2019.11.17"]
[Round "2.25"]
[White "Vega Gutierrez, Belinda"]
[Black "Suarez Uriel, Adrian"]
[Result "1/2-1/2"]
[ECO "B33"]
[WhiteElo "2161"]
[BlackElo "2389"]
[Annotator "RC"]
[PlyCount "128"]
[EventDate "2019.11.16"]
[EventType "swiss"]
[EventCountry "ESP"]
[SourceTitle "playchess.com"]
[Source "ChessBase"]
[SourceQuality "1"]
[TimeControl "5400+30"]

1. e4 {[%emt 0:00:00]} c5 {[%emt 0:00:00]} 2. Nf3 {[%emt 0:00:14]} Nc6 {[%emt 0:00:00]} 3. d4 {[%emt 0:00:07]} cxd4 {[%emt 0:00:00]} 4. Nxd4 {[%emt 0:00:10]} Nf6 {[%emt 0:00:00]} 5. Nc3 {[%emt 0:00:10]} e5 {[%emt 0:00:00]} 6. Ndb5 {[%emt 0:02:40]} d6 {[%emt 0:00:00]} 7. Bg5 {[%emt 0:00:16]} a6 {[%emt 0:00:05]} 8. Na3 {[%emt 0:00:00]} b5 {[%emt 0:00:00]} 9. Nd5 {[%emt 0:00:00]} Be7 {[%emt 0:00:00]} 10. Bxf6 {[%emt 0:00:45]} Bxf6 11. c4 b4 {[%emt 0:00:26]} 12. Nc2 {[%emt 0:00:37]} a5 {[%emt 0:00:05]} 13. g3 {[%emt 0:05:23]} O-O {[%emt 0:00:34]} 14. Bg2 Bg5 {[%emt 0:00:00]} 15. O-O {[%emt 0:00:59]} Ne7 {[%emt 0:00:12]} 16. b3 {[%emt 0:02:46]} Nxd5 {[%emt 0:00:02]} 17. Qxd5 Be6 {[%emt 0:00:03]} 18. Qd3 {[%emt 0:00:45]} Qb6 {[%emt 0:00:30]} 19. Rad1 {[%emt 0:26:03]} Rfd8 {[%emt 0:36:52]} 20. Kh1 {[%emt 0:04:07]} Bh6 {[%emt 0:21:32]} 21. f4 {[%emt 0:08:18]} a4 {[%emt 0:06:24]} 22. Ne3 {[%emt 0:08:49]} g6 {[%emt 0:01:58]} 23. Nd5 {[%emt 0:00:13]} Bxd5 {[%emt 0:01:53]} 24. Qxd5 {[%emt 0:00:10]} Ra5 {[%emt 0:02:39]} 25. Qd3 {[%emt 0:07:15]} Bg7 {[%emt 0:05:34]} 26. f5 {[%emt 0:00:30]} Bh6 {[%emt 0:02:59]} 27. Qf3 {[%emt 0:02:55]} Ra7 {[%emt 0:00:50]} 28. Rd3 {[%emt 0:00:54]} axb3 {[%emt 0:01:14]} 29. axb3 {[%emt 0:07:54]} Rda8 {[%emt 0:00:18]} 30. fxg6 {[%emt 0:00:34]} hxg6 {[%emt 0:03:34]} 31. Qf6 {[%emt 0:04:24]} Bf8 {[%emt 0:07:11]} 32. h4 {[%emt 0:05:11]} Qc7 {[%emt 0:00:30]} 33. h5 {[%emt 0:00:30]} Qe7 {[%emt 0:01:49]} 34. hxg6 Qxf6 35. Rxf6 {[%emt 0:02:03]} fxg6 {[%emt 0:00:10]} 36. Rxg6+ {[%emt 0:00:30]} Kf7 {[%emt 0:00:01]} 37. Rg5 {[%emt 0:00:22]} Kf6 {[%emt 0:03:55]} 38. Rf5+ {[%emt 0:00:21]} Kg6 {[%emt 0:00:01]} 39. Kg1 {[%emt 0:10:04]} Be7 {[%emt 0:02:07]} 40. Bh3 {[%emt 0:01:39]} Rh8 {[%emt 0:01:04]} 41. Bg4 {[%emt 0:00:04]} Ra1+ {[%emt 0:00:19]} 42. Rf1 {[%emt 0:01:47]} Ra2 {[%emt 0:00:59]} 43. Rf2 {[%emt 0:00:08]} Rh1+ {[%emt 0:00:53]} 44. Kxh1 {[%emt 0:00:25]} Rxf2 {[%emt 0:00:01]} 45. Kg1 {[%emt 0:00:12]} Rc2 {[%emt 0:00:05]} 46. Kf1 {[%emt 0:01:07]} Kg5 {[%emt 0:00:29]} 47. Bd1 {[%emt 0:00:29]} Rb2 {[%emt 0:00:52]} 48. Ke1 {[%emt 0:00:45]} Rh2 {[%emt 0:00:52]} 49. Be2 {[%emt 0:00:41]} Kg6 {[%emt 0:00:56]} 50. Rd5 {[%emt 0:00:48]} Rg2 {[%emt 0:01:13]} 51. Rd3 {[%emt 0:00:02]} Rh2 {[%emt 0:00:57]} 52. Kf1 {[%emt 0:01:10]} Rh1+ {[%emt 0:00:14]} 53. Kf2 {[%emt 0:00:12]} Kf7 {[%emt 0:00:51]} 54. Bg4 {[%emt 0:00:55]} Rh2+ {[%emt 0:00:55]} 55. Ke1 {[%emt 0:00:32]} Rb2 {[%emt 0:00:27]} 56. Be2 {[%emt 0:00:31]} Ke8 {[%emt 0:00:24]} 57. Bg4 {[%emt 0:00:27]} Bd8 {[%emt 0:01:11]} 58. Bd1 {[%emt 0:00:18]} Ke7 {[%emt 0:00:08]} 59. Rd2 {[%emt 0:00:39]} Rb1 {[%emt 0:00:11]} 60. Ke2 {[%emt 0:00:09]} Bb6 {[%emt 0:00:10]} 61. Kd3 {[%emt 0:00:54]} Bd4 {[%emt 0:00:18]} 62. Ke2 {[%emt 0:00:31]} Kf6 {[%emt 0:00:32]} 63. Ra2 {[%emt 0:00:21]} Kg5 {[%emt 0:00:11]} 64. Kd2 {[%emt 0:00:19]} Ra1 {[%emt 0:01:43]} 1/2-1/2

[Event "84th ESP-ch 2019"]
[Site "Marbella"]
[Date "2019.11.17"]
[Round "2.28"]
[White "Bernabeu Lopez, Carlos Javier"]
[Black "De La Cruz Revilla, Miguel"]
[Result "1/2-1/2"]
[ECO "A25"]
[WhiteElo "2366"]
[BlackElo "2138"]
[Annotator "RC"]
[PlyCount "91"]
[EventDate "2019.11.16"]
[EventType "swiss"]
[EventCountry "ESP"]
[SourceTitle "playchess.com"]
[Source "ChessBase"]
[SourceQuality "1"]
[TimeControl "5400+30"]

1. c4 {[%emt 0:00:00]} e5 {[%emt 0:01:06]} 2. Nc3 {[%emt 0:00:00]} Nc6 {[%emt 0:01:19]} 3. g3 {[%emt 0:00:00]} g6 {[%emt 0:00:15]} 4. Bg2 {[%emt 0:00:00]} Bg7 {[%emt 0:00:03]} 5. e4 {[%emt 0:00:00]} d6 {[%emt 0:01:13]} 6. Nge2 {[%emt 0:00:19]} h5 {[%emt 0:03:13]} 7. h3 {[%emt 0:02:06]} Be6 {[%emt 0:00:48]} 8. d3 {[%emt 0:00:13]} Qd7 {[%emt 0:00:09]} 9. Bg5 {[%emt 0:01:55]} Nd4 {[%emt 0:23:38]} 10. Nxd4 {[%emt 0:01:32]} exd4 {[%emt 0:02:09]} 11. Nd5 {[%emt 0:08:09]} f6 {[%emt 0:04:35]} 12. Bd2 {[%emt 0:00:44]} c6 {[%emt 0:01:34]} 13. Nf4 {[%emt 0:00:14]} Bf7 {[%emt 0:00:12]} 14. h4 {[%emt 0:01:15]} Qe7 {[%emt 0:04:28]} 15. Ne2 {[%emt 0:04:34]} c5 {[%emt 0:01:32]} 16. Qa4+ {[%emt 0:00:24]} Qd7 {[%emt 0:01:17]} 17. Qxd7+ {[%emt 0:00:44]} Kxd7 {[%emt 0:00:03]} 18. b4 {[%emt 0:04:22]} Re8 {[%emt 0:01:26]} 19. Bh3+ {[%emt 0:03:37]} Be6 {[%emt 0:03:22]} 20. Bxe6+ {[%emt 0:01:46]} Kxe6 {[%emt 0:00:02]} 21. bxc5 {[%emt 0:01:53]} dxc5 {[%emt 0:00:02]} 22. O-O {[%emt 0:01:17]} Bh6 {[%emt 0:04:25]} 23. f4 {[%emt 0:07:29]} Kd7 {[%emt 0:03:58]} 24. Rfb1 {[%emt 0:01:11]} Kc6 {[%emt 0:00:07]} 25. a4 {[%emt 0:02:06]} Bf8 {[%emt 0:00:56]} 26. Nc1 {[%emt 0:01:24]} Bd6 {[%emt 0:00:33]} 27. Rb2 {[%emt 0:02:28]} Nh6 {[%emt 0:01:27]} 28. Rab1 {[%emt 0:00:54]} b6 {[%emt 0:10:39]} 29. a5 {[%emt 0:10:36]} Bc7 {[%emt 0:00:10]} 30. Ra2 {[%emt 0:11:22]} Ng4 {[%emt 0:00:55]} 31. Ne2 {[%emt 0:01:39]} f5 {[%emt 0:19:34]} 32. e5 {[%emt 0:01:41]} g5 {[%emt 0:00:10]} 33. axb6 {[%emt 0:01:35]} axb6 {[%emt 0:00:26]} 34. hxg5 {[%emt 0:03:08]} h4 {[%emt 0:00:09]} 35. gxh4 {[%emt 0:00:32]} Rxh4 {[%emt 0:00:09]} 36. Be1 {[%emt 0:00:33]} Rh3 {[%emt 0:01:27]} 37. Ng3 {[%emt 0:02:09]} Reh8 {[%emt 0:00:38]} 38. Rbb2 {[%emt 0:09:14]} Bxe5 {[%emt 0:02:58]} 39. fxe5 {[%emt 0:01:18]} f4 {[%emt 0:00:02]} 40. Ra6 {[%emt 0:03:08]} fxg3 {[%emt 0:00:17]} 41. Raxb6+ {[%emt 0:01:35]} Kd7 {[%emt 0:00:55]} 42. Rd6+ {[%emt 0:01:13]} Kc8 {[%emt 0:00:51]} 43. Rc6+ {[%emt 0:06:13]} Kd7 {[%emt 0:00:06]} 44. Rd6+ {[%emt 0:00:16]} Kc8 {[%emt 0:00:05]} 45. Rdb6 {[%emt 0:03:37]} Kd7 {[%emt 0:07:20]} 46. Rd6+ {[%emt 0:01:49]} 1/2-1/2

[Event "84th ESP-ch 2019"]
[Site "Marbella"]
[Date "2019.11.17"]
[Round "2.36"]
[White "Diaz Mino, Pablo"]
[Black "Malia Ramirez, Jose"]
[Result "1-0"]
[ECO "A41"]
[WhiteElo "2135"]
[BlackElo "1835"]
[Annotator "NA RC"]
[PlyCount "67"]
[EventDate "2019.11.16"]
[EventType "swiss"]
[EventCountry "ESP"]
[SourceTitle "playchess.com"]
[Source "ChessBase"]
[SourceQuality "1"]
[TimeControl "5400+30"]

1. d4 {[%emt 0:00:00]} d6 {[%emt 0:01:02]} 2. c4 {[%emt 0:00:00]} e5 {[%emt 0:00:14]} 3. d5 {[%emt 0:00:00]} Be7 {[%emt 0:00:43]} 4. Nc3 {[%emt 0:00:38]} Bg5 {[%emt 0:00:37]} 5. e3 {[%emt 0:00:05]} f5 {[%emt 0:01:02]} 6. Nf3 {[%emt 0:03:00] A41: 1 d4 d6: Tartakower System and Modern Defence} Bh6 {[%emt 0:00:35]} 7. Qa4+ $146 {[%emt 0:03:44]} ({Predecessor:} 7. e4 Bxc1 8. Rxc1 fxe4 9. Nxe4 Nf6 10. Nfd2 O-O 11. Bd3 Bf5 {½-½ (60) Flear,G (2455)-Cornette,M (2606) Espalion 2017}) 7... Bd7 {[%emt 0:01:54]} 8. Qb3 {[%emt 0:04:10]} Na6 {[%emt 0:02:38]} 9. Qxb7 {[%emt 0:00:27]} Nc5 {[%emt 0:00:04]} 10. Qb4 {[%emt 0:00:05]} e4 {[%emt 0:04:29]} 11. Nd4 {[%emt 0:01:52]} Nf6 {[%emt 0:00:42]} 12. Qa5 {[%emt 0:01:51]} O-O {[%emt 0:01:41]} 13. b4 {[%emt 0:01:39]} Nd3+ {[%emt 0:01:59]} 14. Bxd3 {[%emt 0:00:14]} exd3 {[%emt 0:00:05]} 15. Ncb5 {[%emt 0:12:40]} Bxb5 {[%emt 0:08:00]} 16. Nxb5 $19 {[%emt 0:05:46]} (16. Ne6 $1 $11 {and White is okay.} Qe8 17. Qxb5 Qxb5 18. cxb5) 16... Ne4 {[%emt 0:03:55]} 17. Qa3 {[%emt 0:26:39]} d2+ {[%emt 0:11:02]} 18. Bxd2 {[%emt 0:00:06]} Nxd2 {[%emt 0:00:03]} 19. Kxd2 {[%emt 0:00:06]} Qh4 {[%emt 0:00:02]} 20. g3 {[%emt 0:10:01]} Qxc4 {[%emt 0:00:36]} 21. Qd3 {[%emt 0:02:57]} Qxb4+ {[%emt 0:00:07]} 22. Ke2 {[%emt 0:05:21]} Qg4+ {[%emt 0:13:01]} 23. f3 {[%emt 0:00:43]} Qh3 {[%emt 0:00:19]} 24. Kf2 {[%emt 0:01:11]} Rae8 {[%emt 0:00:48]} 25. Rae1 {[%emt 0:00:33]} f4 {[%emt 0:09:14]} 26. e4 {[%emt 0:00:04]} Rf7 {[%emt 0:10:14]} 27. Nxa7 {[%emt 0:04:02]} Ref8 {[%emt 0:06:54]} 28. g4 {[%emt 0:02:04]} Bg5 {[%emt 0:01:56]} 29. Reg1 {[%emt 0:00:17]} Bh4+ {[%emt 0:02:22]} 30. Ke2 {[%emt 0:00:08]} Ra8 {[%emt 0:00:04]} 31. Qb3 {[%emt 0:00:24]} Raf8 {[%emt 0:04:37]} 32. Nc6 {[%emt 0:01:22]} h5 {[%emt 0:01:43]} 33. gxh5 {[%emt 0:06:28]} Qc8 {[%emt 0:00:35]} 34. a4 {[%emt 0:00:31]} 1-0